[Event "Asian Nation Cup Open 2018"]
[Site "Hamedan"]
[Date "2018.07.28"]
[Round "1"]
[White "Mohammad Fahad, Rahman"]
[Black "Tabatabaei, M amin"]
[Result "0-1"]
[ECO "C70"]
[WhiteElo "2237"]
[BlackElo "2590"]
[Annotator "ChessBase"]
[PlyCount "70"]
[EventDate "2018.07.27"]
[EventType "swiss"]
[EventCountry "IRI"]
[SourceTitle "playchess.com"]
[Source "ChessBase"]
[SourceQuality "1"]
[WhiteTeam "Bangladesh"]
[BlackTeam "Iran"]
[WhiteTeamCountry "BAN"]
[BlackTeamCountry "IRI"]
[TimeControl "40/5400+30:1800+30"]

1. e4 {[%emt 0:00:00]} e5 {[%emt 0:00:06]} 2. Nf3 {[%emt 0:00:00]} Nc6 {[%emt 0:00:04]} 3. Bb5 {[%emt 0:00:00]} a6 {[%emt 0:00:03]} 4. Ba4 {[%emt 0:00:06]} b5 {[%emt 0:00:04]} 5. Bb3 {[%emt 0:00:06]} g6 6. d4 {[%emt 0:01:31]} exd4 {[%emt 0:00:10]} 7. Nxd4 {[%emt 0:00:02]} Na5 {[%emt 0:00:08]} 8. O-O {[%emt 0:08:47]} Bg7 {[%emt 0:00:36]} 9. c3 {[%emt 0:29:23]} Nxb3 {[%emt 0:02:15]} 10. Nxb3 {[%emt 0:00:17]} Ne7 {[%emt 0:00:14]} 11. Be3 {[%emt 0:00:30]} O-O {[%emt 0:02:26]} 12. Bd4 {[%emt 0:00:26]} f6 {[%emt 0:00:31]} 13. N1d2 {[%emt 0:00:39]} d6 {[%emt 0:00:34]} 14. Be3 {[%emt 0:04:45]} c5 {[%emt 0:03:48]} 15. Nf3 {[%emt 0:01:10]} Bb7 {[%emt 0:02:25]} 16. Bf4 {[%emt 0:02:38]} Nc8 {[%emt 0:05:27]} 17. Re1 Bc6 18. Qd2 {[%emt 0:04:17]} Ra7 {[%emt 0:04:10]} 19. Rad1 {[%emt 0:00:34]} Rd7 {[%emt 0:00:27]} 20. h4 {[%emt 0:06:05]} a5 {[%emt 0:03:11]} 21. c4 {[%emt 0:03:15]} b4 {[%emt 0:01:31]} 22. Qc2 {[%emt 0:08:43]} h6 {[%emt 0:00:30]} 23. Nh2 f5 {[%emt 0:10:56]} 24. exf5 {[%emt 0:05:56]} a4 {[%emt 0:02:14]} 25. Nc1 {[%emt 0:00:57]} Ne7 {[%emt 0:00:16]} 26. g4 {[%emt 0:12:40]} gxf5 {[%emt 0:01:02]} 27. Re6 {[%emt 0:00:18]} fxg4 {[%emt 0:00:57]} 28. Bxh6 {[%emt 0:00:27]} Nf5 {[%emt 0:06:01]} 29. Bg5 {[%emt 0:00:18]} Qa8 {[%emt 0:00:05]} 30. Qe2 {[%emt 0:00:51]} g3 {[%emt 0:00:49]} 31. fxg3 {[%emt 0:02:00]} Nd4 {[%emt 0:10:36]} 32. Rxd4 {[%emt 0:00:20]} Bxd4+ {[%emt 0:00:05]} 33. Be3 {[%emt 0:00:09]} Rg7 {[%emt 0:00:24]} 34. Nf1 {[%emt 0:01:14]} Qd8 {[%emt 0:04:48]} 35. Kh2 {[%emt 0:00:17]} Be5 {[%emt 0:02:54]} 0-1

[Event "Asian Nation Cup Open 2018"]
[Site "Hamedan"]
[Date "2018.07.29"]
[Round "2"]
[White "Monawary, Parwiz"]
[Black "Abdisalimov, Abdimalik"]
[Result "0-1"]
[ECO "B22"]
[WhiteElo "1903"]
[BlackElo "2331"]
[Annotator "NA"]
[PlyCount "90"]
[EventDate "2018.07.27"]
[EventType "swiss"]
[EventCountry "IRI"]
[SourceTitle "playchess.com"]
[Source "ChessBase"]
[SourceQuality "1"]
[WhiteTeam "Afghanistan"]
[BlackTeam "Uzbekistan"]
[WhiteTeamCountry "AFG"]
[BlackTeamCountry "UZB"]
[TimeControl "40/5400+30:1800+30"]

1. e4 {[%emt 0:00:00]} c5 2. c3 {[%emt 0:00:00]} Nf6 {[%emt 0:03:40]} 3. e5 {[%emt 0:00:00]} Nd5 {[%emt 0:00:14]} 4. Nf3 {[%emt 0:00:00]} Nc6 {[%emt 0:00:22]} 5. Bc4 {[%emt 0:00:44]} Nb6 {[%emt 0:01:12]} 6. Bb3 {[%emt 0:01:10]} d5 {[%emt 0:01:15]} 7. d4 {[%emt 0:02:47]} cxd4 {[%emt 0:00:56]} 8. cxd4 {[%emt 0:00:16]} Bg4 {[%emt 0:00:04]} 9. Be3 {[%emt 0:01:39]} e6 {[%emt 0:00:06]} 10. Nbd2 {[%emt 0:01:55]} Bb4 {[%emt 0:01:17]} 11. O-O {[%emt 0:13:16]} Bxd2 {[%emt 0:01:20]} 12. Qxd2 {[%emt 0:00:24]} Bxf3 {[%emt 0:00:40]} 13. gxf3 {[%emt 0:00:22]} O-O {[%emt 0:03:25]} 14. Kh1 {[%emt 0:05:56]} f6 {[%emt 0:02:09]} 15. f4 {[%emt 0:04:23]} fxe5 {[%emt 0:01:40]} 16. fxe5 {[%emt 0:01:41]} Qh4 {[%emt 0:00:22]} 17. f4 {[%emt 0:03:15]} Ne7 {[%emt 0:01:59]} 18. Rf2 {[%emt 0:10:05]} Nc4 {[%emt 0:00:58]} 19. Bxc4 {[%emt 0:09:56]} dxc4 {[%emt 0:00:19]} 20. Rg1 {[%emt 0:01:24]} Qh3 {[%emt 0:01:49]} 21. Qe2 {[%emt 0:04:11]} Nd5 {[%emt 0:08:51]} 22. Rf3 {[%emt 0:02:51]} Qf5 {[%emt 0:01:04]} 23. Bc1 {[%emt 0:02:11]} Rac8 {[%emt 0:00:54]} 24. Qg2 {[%emt 0:08:32]} g6 {[%emt 0:07:11]} 25. h4 {[%emt 0:07:21]} c3 {[%emt 0:03:32]} 26. b3 {[%emt 0:02:19]} c2 {[%emt 0:00:10]} 27. Kh2 {[%emt 0:04:05]} Rc3 {[%emt 0:00:58]} 28. Rxc3 {[%emt 0:00:27]} Nxc3 {[%emt 0:00:02]} 29. Qh3 {[%emt 0:02:20]} Ne2 {[%emt 0:03:40]} 30. Qxf5 {[%emt 0:00:26]} Rxf5 {[%emt 0:00:22]} 31. Rf1 {[%emt 0:00:15]} Rf8 {[%emt 0:00:48]} 32. Kg2 {[%emt 0:01:32]} Rd8 {[%emt 0:00:47]} 33. Be3 {[%emt 0:01:08]} Rc8 {[%emt 0:01:13]} 34. Bc1 {[%emt 0:00:02]} Nxd4 {[%emt 0:00:08]} 35. Kf2 {[%emt 0:01:26]} Nf5 {[%emt 0:00:18]} 36. h5 {[%emt 0:00:35]} gxh5 {[%emt 0:00:41]} 37. Rh1 {[%emt 0:00:35]} Rd8 {[%emt 0:00:14]} 38. Rxh5 {[%emt 0:00:25]} Rd1 {[%emt 0:00:12]} 39. Rg5+ {[%emt 0:00:11]} Kf7 {[%emt 0:00:25]} 40. Rg1 {[%emt 0:00:01]} h5 {[%emt 0:30:16]} 41. Ba3 {[%emt 0:31:34]} h4 {[%emt 0:00:14]} 42. Kg2 {[%emt 0:02:53]} Nd4 {[%emt 0:00:27]} 43. Rh1 {[%emt 0:00:46]} Rxh1 {[%emt 0:00:10]} 44. Kxh1 {[%emt 0:00:04]} Ne2 {[%emt 0:00:06]} 45. Kg2 {[%emt 0:00:26]} Nxf4+ {[%emt 0:00:02]} 0-1

[Event "Asian Nation Cup Open 2018"]
[Site "Hamedan"]
[Date "2018.07.30"]
[Round "3"]
[White "Ghaem Maghami, Ehsan"]
[Black "Mohammed, Zozek Salah Mohamme"]
[Result "1-0"]
[ECO "A13"]
[WhiteElo "2537"]
[BlackElo "2261"]
[Annotator "ChessBase"]
[PlyCount "84"]
[EventDate "2018.07.27"]
[EventType "swiss"]
[EventCountry "IRI"]
[SourceTitle "playchess.com"]
[Source "ChessBase"]
[SourceQuality "1"]
[WhiteTeam "Iran"]
[BlackTeam "Iraq"]
[WhiteTeamCountry "IRI"]
[BlackTeamCountry "IRQ"]
[TimeControl "40/5400+30:1800+30"]

1. c4 {[%emt 0:03:02]} e6 {[%emt 0:00:00]} 2. Nf3 {[%emt 0:02:25]} d5 {[%emt 0:00:24]} 3. d4 {[%emt 0:03:01]} Nf6 {[%emt 0:00:27]} 4. g3 b6 {[%emt 0:06:02]} 5. Bg2 {[%emt 0:03:09]} Bb7 6. cxd5 exd5 {[%emt 0:00:43]} 7. O-O {[%emt 0:00:40]} Bd6 {[%emt 0:01:52]} 8. Nc3 a6 9. Qb3 {[%emt 0:14:31]} Nbd7 10. Nh4 O-O {[%emt 0:28:54]} 11. Nf5 {[%emt 0:09:14]} Re8 {[%emt 0:01:42]} 12. Nxd5 {[%emt 0:06:47]} Nxd5 {[%emt 0:00:47]} 13. Bxd5 {[%emt 0:00:06]} Bxd5 {[%emt 0:00:31]} 14. Qxd5 {[%emt 0:00:05]} Nf6 {[%emt 0:12:14]} 15. Qc4 {[%emt 0:06:20]} Qd7 {[%emt 0:01:31]} 16. Qd3 {[%emt 0:02:41]} Ne4 {[%emt 0:01:49]} 17. Nxd6 {[%emt 0:00:51]} Nxd6 {[%emt 0:00:22]} 18. Bf4 {[%emt 0:00:33]} Nf5 {[%emt 0:03:41]} 19. Rad1 {[%emt 0:09:21]} Rad8 {[%emt 0:10:57]} 20. d5 {[%emt 0:03:14]} b5 {[%emt 0:01:39]} 21. e4 {[%emt 0:07:19]} Nd6 {[%emt 0:00:16]} 22. Rfe1 {[%emt 0:00:59]} Nc4 {[%emt 0:02:24]} 23. Qc3 {[%emt 0:01:08]} f6 {[%emt 0:00:21]} 24. Rc1 {[%emt 0:05:05]} Re7 {[%emt 0:01:26]} 25. b3 {[%emt 0:03:04]} Nd6 {[%emt 0:00:27]} 26. f3 {[%emt 0:00:25]} Qh3 {[%emt 0:01:10]} 27. Qa5 {[%emt 0:03:03]} Qc8 {[%emt 0:02:29]} 28. Qb4 {[%emt 0:03:51]} Qa8 {[%emt 0:02:55]} 29. Rc6 {[%emt 0:00:52]} a5 {[%emt 0:00:09]} 30. Qc5 {[%emt 0:00:24]} Qb8 {[%emt 0:00:29]} 31. Rc1 {[%emt 0:00:24]} g5 {[%emt 0:00:53]} 32. Bxd6 {[%emt 0:01:15]} cxd6 {[%emt 0:00:11]} 33. Qd4 {[%emt 0:02:45]} Kf7 {[%emt 0:00:28]} 34. Kg2 {[%emt 0:03:39]} h5 {[%emt 0:03:11]} 35. h3 {[%emt 0:00:46]} g4 {[%emt 0:01:33]} 36. hxg4 {[%emt 0:00:25]} hxg4 {[%emt 0:00:02]} 37. fxg4 {[%emt 0:00:11]} Rg8 {[%emt 0:01:20]} 38. Rf1 {[%emt 0:00:24]} Re5 {[%emt 0:00:19]} 39. Rf4 {[%emt 0:00:58]} Rc8 {[%emt 0:05:52]} 40. g5 {[%emt 0:00:26]} Rxc6 {[%emt 0:00:26]} 41. dxc6 {[%emt 0:30:17]} Qe8 {[%emt 0:30:29]} 42. Qxd6 {[%emt 0:01:10]} Qd8 1-0

[Event "Asian Nation Cup Open 2018"]
[Site "Hamedan"]
[Date "2018.07.31"]
[Round "4"]
[White "Abdisalimov, Abdimalik"]
[Black "Mohammad Minhaz Uddin"]
[Result "1-0"]
[ECO "E47"]
[WhiteElo "2331"]
[BlackElo "2330"]
[Annotator "NA"]
[PlyCount "49"]
[EventDate "2018.07.27"]
[EventType "swiss"]
[EventCountry "IRI"]
[SourceTitle "playchess.com"]
[Source "ChessBase"]
[SourceQuality "1"]
[WhiteTeam "Uzbekistan"]
[BlackTeam "Bangladesh"]
[WhiteTeamCountry "UZB"]
[BlackTeamCountry "BAN"]
[TimeControl "40/5400+30:1800+30"]

1. d4 {[%emt 0:00:00]} Nf6 {[%emt 0:00:07]} 2. c4 {[%emt 0:00:00]} e6 {[%emt 0:00:09]} 3. Nc3 {[%emt 0:00:02]} Bb4 4. e3 O-O {[%emt 0:00:36]} 5. Bd3 {[%emt 0:00:17]} c5 {[%emt 0:00:44]} 6. Nf3 {[%emt 0:00:24]} d5 {[%emt 0:00:19]} 7. cxd5 {[%emt 0:00:25]} exd5 {[%emt 0:08:29]} 8. O-O {[%emt 0:00:14]} Nc6 {[%emt 0:00:19]} 9. dxc5 {[%emt 0:00:03]} Bxc5 {[%emt 0:02:24]} 10. h3 {[%emt 0:00:43]} a6 {[%emt 0:01:10]} 11. Ne2 {[%emt 0:05:54]} Re8 {[%emt 0:09:14]} 12. b3 {[%emt 0:06:39]} Bd7 {[%emt 0:10:57]} 13. Bb2 {[%emt 0:00:22]} Nb4 {[%emt 0:02:39]} 14. Bb1 {[%emt 0:04:14]} Bb5 {[%emt 0:03:42]} 15. Re1 {[%emt 0:02:28]} Bxe2 {[%emt 0:01:49]} 16. Qxe2 $14 {[%emt 0:06:39]} Ne4 {[%emt 0:00:30]} 17. a3 {[%emt 0:00:30]} Nc6 {[%emt 0:00:30]} 18. b4 {[%emt 0:00:30]} Ba7 {[%emt 0:00:30]} 19. Ba2 {[%emt 0:00:30]} Ne7 {[%emt 0:00:30]} 20. Qd3 {[%emt 0:00:30]} Qd6 {[%emt 0:00:30]} 21. Rad1 Rad8 {[%emt 0:05:41]} 22. Re2 {[%emt 0:01:00]} Nc6 {[%emt 0:11:38]} 23. Ne5 {[%emt 0:18:15]} Nxe5 {[%emt 0:00:16]} 24. Qxe4 {[%emt 0:01:41]} Qc7 {[%emt 0:05:31]} 25. Rxd5 {[%emt 0:05:21]} 1-0

[Event "Asian Nation Cup Open 2018"]
[Site "Hamedan"]
[Date "2018.08.01"]
[Round "5"]
[White "Ismagambetov, Anuar"]
[Black "Tahbaz, Arash"]
[Result "1/2-1/2"]
[ECO "C78"]
[WhiteElo "2529"]
[BlackElo "2449"]
[Annotator "ChessBase"]
[PlyCount "36"]
[EventDate "2018.07.27"]
[EventType "swiss"]
[EventCountry "IRI"]
[SourceTitle "playchess.com"]
[Source "ChessBase"]
[SourceQuality "1"]
[WhiteTeam "Kazakhstan"]
[BlackTeam "Iran"]
[WhiteTeamCountry "KAZ"]
[BlackTeamCountry "IRI"]
[TimeControl "40/5400+30:1800+30"]

1. e4 {[%emt 0:00:00]} e5 {[%emt 0:00:00]} 2. Nf3 {[%emt 0:00:06]} Nc6 {[%emt 0:00:00]} 3. Bb5 {[%emt 0:00:24]} a6 {[%emt 0:00:00]} 4. Ba4 {[%emt 0:00:06]} Nf6 {[%emt 0:00:00]} 5. O-O {[%emt 0:00:47]} b5 {[%emt 0:00:00]} 6. Bb3 {[%emt 0:00:10]} Bb7 {[%emt 0:00:02]} 7. d3 {[%emt 0:04:03]} Be7 {[%emt 0:00:06]} 8. Nc3 {[%emt 0:04:41]} O-O {[%emt 0:00:04]} 9. Bd2 {[%emt 0:01:54]} d6 {[%emt 0:00:04]} 10. Nd5 {[%emt 0:02:43]} Nxd5 {[%emt 0:00:03]} 11. Bxd5 {[%emt 0:00:05]} Qc8 {[%emt 0:00:05]} 12. Re1 {[%emt 0:18:44]} Bf6 {[%emt 0:00:02]} 13. c3 {[%emt 0:03:36]} Ne7 {[%emt 0:00:03]} 14. Bxb7 {[%emt 0:00:41]} Qxb7 {[%emt 0:00:02]} 15. d4 {[%emt 0:01:21]} Ng6 {[%emt 0:00:03]} 16. Qc2 {[%emt 0:03:07]} Rfe8 {[%emt 0:01:00]} 17. Rad1 {[%emt 0:00:22]} exd4 {[%emt 0:06:25]} 18. cxd4 {[%emt 0:03:46]} c5 {[%emt 0:00:03]} 1/2-1/2

[Event "Asian Nation Cup Open 2018"]
[Site "Hamedan"]
[Date "2018.08.01"]
[Round "5"]
[White "Kostenko, Petr"]
[Black "Gholami Orimi, Mahdi"]
[Result "1-0"]
[ECO "A13"]
[WhiteElo "2444"]
[BlackElo "2333"]
[Annotator "NA"]
[PlyCount "83"]
[EventDate "2018.07.27"]
[EventType "swiss"]
[EventCountry "IRI"]
[SourceTitle "playchess.com"]
[Source "ChessBase"]
[SourceQuality "1"]
[WhiteTeam "Kazakhstan"]
[BlackTeam "Iran"]
[WhiteTeamCountry "KAZ"]
[BlackTeamCountry "IRI"]
[TimeControl "40/5400+30:1800+30"]

1. c4 {[%emt 0:00:00]} e6 {[%emt 0:00:07]} 2. Nf3 {[%emt 0:01:33]} b6 {[%emt 0:06:44]} 3. Nc3 {[%emt 0:00:33]} Bb7 {[%emt 0:00:23]} 4. e4 {[%emt 0:00:54]} Bb4 {[%emt 0:04:35]} 5. Qb3 {[%emt 0:07:44]} Bxc3 {[%emt 0:17:11]} 6. Qxc3 {[%emt 0:00:38]} Bxe4 {[%emt 0:01:01]} 7. Qxg7 {[%emt 0:00:20]} Qf6 {[%emt 0:00:05]} 8. Qxf6 {[%emt 0:01:34]} Nxf6 {[%emt 0:00:04]} 9. Be2 {[%emt 0:06:51]} Rg8 {[%emt 0:02:58]} 10. d3 {[%emt 0:05:52]} Bb7 {[%emt 0:02:29]} 11. Bg5 Bxf3 {[%emt 0:30:12]} 12. Bxf3 {[%emt 0:30:38]} Rxg5 {[%emt 0:00:02]} 13. Bxa8 {[%emt 0:00:08]} c6 {[%emt 0:00:03]} 14. b4 {[%emt 0:00:27]} Rxg2 {[%emt 0:10:54]} 15. b5 {[%emt 0:06:39]} Rg5 {[%emt 0:06:34]} 16. a4 {[%emt 0:00:27]} Kd8 {[%emt 0:04:11]} 17. Kd2 {[%emt 0:03:37]} Rf5 {[%emt 0:00:37]} 18. Raf1 {[%emt 0:01:03]} a6 19. a5 {[%emt 0:13:12]} axb5 {[%emt 0:09:59]} 20. axb6 {[%emt 0:00:10]} bxc4 {[%emt 0:00:29]} 21. dxc4 {[%emt 0:00:10]} d6 {[%emt 0:01:16]} 22. Rhg1 {[%emt 0:00:26]} Nbd7 {[%emt 0:00:02]} 23. b7 {[%emt 0:02:32]} Kc7 {[%emt 0:00:30]} 24. Rg7 {[%emt 0:01:04]} Kb8 {[%emt 0:01:02]} 25. f3 {[%emt 0:01:22]} Ne5 {[%emt 0:00:19]} 26. Ke2 {[%emt 0:01:32]} Rh5 {[%emt 0:00:39]} 27. Rf2 {[%emt 0:00:54]} Rh3 {[%emt 0:00:30]} 28. f4 {[%emt 0:01:53]} Ned7 {[%emt 0:00:04]} 29. Rxf7 {[%emt 0:00:25]} Rb3 {[%emt 0:00:27]} 30. Kf1 {[%emt 0:00:28]} Rb4 {[%emt 0:00:56]} 31. Rc2 {[%emt 0:02:10]} c5 {[%emt 0:00:10]} 32. Kg2 {[%emt 0:00:40]} d5 {[%emt 0:00:06]} 33. f5 {[%emt 0:05:58]} exf5 {[%emt 0:01:10]} 34. cxd5 {[%emt 0:00:03]} c4 {[%emt 0:00:08]} 35. d6 {[%emt 0:00:36]} Ka7 {[%emt 0:00:49]} 36. Re7 {[%emt 0:00:40]} Kb8 {[%emt 0:00:43]} 37. Kf3 {[%emt 0:00:57]} Nb6 {[%emt 0:00:27]} 38. Kf4 {[%emt 0:01:46]} Nbd5+ {[%emt 0:00:33]} 39. Kxf5 {[%emt 0:00:26]} Nxe7+ {[%emt 0:00:23]} 40. dxe7 {[%emt 0:00:42]} Ne8 {[%emt 0:00:00]} 41. Rd2 {[%emt 0:01:46]} Rb5+ {[%emt 0:00:40]} 42. Kf4 {[%emt 0:00:22]} 1-0

[Event "Asian Nation Cup Open 2018"]
[Site "Hamedan"]
[Date "2018.08.02"]
[Round "6"]
[White "Bai, Jinshi"]
[Black "Abdisalimov, Abdimalik"]
[Result "1/2-1/2"]
[ECO "A04"]
[WhiteElo "2588"]
[BlackElo "2331"]
[Annotator "ChessBase"]
[PlyCount "77"]
[EventDate "2018.07.27"]
[EventType "swiss"]
[EventCountry "IRI"]
[SourceTitle "playchess.com"]
[Source "ChessBase"]
[SourceQuality "1"]
[WhiteTeam "China"]
[BlackTeam "Uzbekistan"]
[WhiteTeamCountry "CHN"]
[BlackTeamCountry "UZB"]
[TimeControl "40/5400+30:1800+30"]

1. Nf3 {[%emt 0:00:00]} c5 {[%emt 0:00:00]} 2. c4 {[%emt 0:00:00]} Nc6 {[%emt 0:00:08]} 3. Nc3 {[%emt 0:00:48]} g6 {[%emt 0:06:29]} 4. e3 {[%emt 0:01:04]} Nf6 {[%emt 0:00:29]} 5. d4 {[%emt 0:00:47]} cxd4 {[%emt 0:00:07]} 6. exd4 {[%emt 0:00:06]} d5 {[%emt 0:00:03]} 7. cxd5 {[%emt 0:04:00]} Nxd5 {[%emt 0:00:05]} 8. Bc4 {[%emt 0:00:07]} e6 {[%emt 0:00:09]} 9. Bxd5 {[%emt 0:03:33]} exd5 {[%emt 0:00:41]} 10. O-O {[%emt 0:00:07]} Bg7 {[%emt 0:12:01]} 11. Bg5 {[%emt 0:04:46]} Qa5 {[%emt 0:10:24]} 12. Re1+ {[%emt 0:33:12]} Be6 {[%emt 0:00:30]} 13. Qd2 {[%emt 0:00:10]} O-O {[%emt 0:03:44]} 14. Bh6 {[%emt 0:01:30]} Rfe8 {[%emt 0:03:14]} 15. Bxg7 {[%emt 0:04:08]} Kxg7 {[%emt 0:00:12]} 16. Qf4 {[%emt 0:00:10]} f6 {[%emt 0:14:04]} 17. g4 {[%emt 0:08:37]} Qd8 {[%emt 0:21:15]} 18. g5 {[%emt 0:13:24]} fxg5 {[%emt 0:06:31]} 19. Nxg5 {[%emt 0:00:05]} Bg8 {[%emt 0:01:19]} 20. Rxe8 {[%emt 0:09:31]} Qxe8 {[%emt 0:00:12]} 21. Qc7+ {[%emt 0:00:05]} Kh6 {[%emt 0:08:35]} 22. Nf3 {[%emt 0:05:20]} Qf8 {[%emt 0:01:11]} 23. Qg3 {[%emt 0:01:24]} Re8 {[%emt 0:01:57]} 24. Re1 {[%emt 0:04:15]} Rxe1+ 25. Nxe1 {[%emt 0:00:02]} Qf6 {[%emt 0:03:45]} 26. Qe3+ {[%emt 0:01:03]} g5 {[%emt 0:00:58]} 27. Nf3 {[%emt 0:00:27]} Kg6 {[%emt 0:00:02]} 28. Ne2 {[%emt 0:03:35]} Qf5 {[%emt 0:03:54]} 29. Ng3 {[%emt 0:00:56]} Qf4 {[%emt 0:00:21]} 30. Qd3+ {[%emt 0:00:29]} Kh6 {[%emt 0:01:02]} 31. Nf5+ {[%emt 0:00:11]} Kh5 {[%emt 0:00:01]} 32. Ng3+ {[%emt 0:00:15]} Kh6 {[%emt 0:00:00]} 33. Nf5+ {[%emt 0:01:27]} Kh5 {[%emt 0:00:01]} 34. h3 {[%emt 0:00:25]} Nb4 {[%emt 0:02:06]} 35. Ng7+ {[%emt 0:00:23]} Kh6 {[%emt 0:00:09]} 36. Nf5+ {[%emt 0:00:10]} Kh5 {[%emt 0:01:32]} 37. Ng7+ {[%emt 0:00:29]} Kh6 38. Nf5+ {[%emt 0:00:03]} Kh5 {[%emt 0:00:58]} 39. Ng7+ {[%emt 0:00:50]} 1/2-1/2

[Event "Asian Nation Cup Open 2018"]
[Site "Hamedan"]
[Date "2018.08.03"]
[Round "7"]
[White "Gupta, Abhijeet"]
[Black "Gholami Orimi, Mahdi"]
[Result "1/2-1/2"]
[ECO "E04"]
[WhiteElo "2614"]
[BlackElo "2333"]
[Annotator "ChessBase"]
[PlyCount "102"]
[EventDate "2018.07.27"]
[EventType "swiss"]
[EventCountry "IRI"]
[SourceTitle "playchess.com"]
[Source "ChessBase"]
[SourceQuality "1"]
[WhiteTeam "India"]
[BlackTeam "Iran"]
[WhiteTeamCountry "IND"]
[BlackTeamCountry "IRI"]
[TimeControl "40/5400+30:1800+30"]

1. d4 {[%emt 0:00:00]} Nf6 {[%emt 0:00:00]} 2. c4 {[%emt 0:00:02]} e6 {[%emt 0:00:00]} 3. Nf3 {[%emt 0:00:05]} d5 {[%emt 0:00:00]} 4. g3 {[%emt 0:00:05]} dxc4 {[%emt 0:00:20]} 5. Bg2 {[%emt 0:00:05]} c5 {[%emt 0:00:07]} 6. O-O {[%emt 0:00:23]} Nc6 {[%emt 0:00:23]} 7. Ne5 {[%emt 0:03:03]} Nd5 {[%emt 0:23:45]} 8. Nxc6 {[%emt 0:09:09]} bxc6 {[%emt 0:00:53]} 9. Na3 {[%emt 0:00:45]} Be7 {[%emt 0:17:55]} 10. dxc5 {[%emt 0:02:32]} Bxc5 {[%emt 0:02:23]} 11. Nxc4 {[%emt 0:01:45]} Ba6 {[%emt 0:01:33]} 12. Ne5 {[%emt 0:02:16]} O-O {[%emt 0:00:20]} 13. Qc2 {[%emt 0:01:04]} Bb6 {[%emt 0:03:18]} 14. Nc4 {[%emt 0:02:56]} Rb8 {[%emt 0:08:42]} 15. Nxb6 {[%emt 0:03:39]} Qxb6 {[%emt 0:00:45]} 16. b3 {[%emt 0:00:47]} c5 {[%emt 0:01:04]} 17. Rd1 {[%emt 0:00:46]} c4 {[%emt 0:03:58]} 18. Bxd5 {[%emt 0:00:18]} exd5 {[%emt 0:00:07]} 19. Be3 {[%emt 0:00:05]} cxb3 {[%emt 0:07:29]} 20. axb3 {[%emt 0:00:05]} Qe6 {[%emt 0:00:25]} 21. Qa2 {[%emt 0:01:13]} Bb5 {[%emt 0:00:16]} 22. Rd2 {[%emt 0:06:46]} a6 {[%emt 0:01:25]} 23. Rad1 {[%emt 0:00:38]} Rfd8 {[%emt 0:02:52]} 24. Rd4 {[%emt 0:02:35]} Rd7 {[%emt 0:00:37]} 25. Rc1 {[%emt 0:00:34]} Rdd8 {[%emt 0:08:10]} 26. Rcd1 {[%emt 0:01:04]} Rd7 {[%emt 0:01:36]} 27. Qc2 {[%emt 0:05:02]} h6 {[%emt 0:01:43]} 28. Kg2 {[%emt 0:00:22]} Rdb7 {[%emt 0:00:48]} 29. h3 {[%emt 0:00:46]} Bd7 {[%emt 0:01:11]} 30. Rg4 {[%emt 0:03:16]} Qe8 {[%emt 0:03:12]} 31. Rf4 {[%emt 0:02:13]} Rxb3 {[%emt 0:00:21]} 32. Bd4 {[%emt 0:00:12]} Qc8 {[%emt 0:00:16]} 33. Qd2 {[%emt 0:05:35]} Bxh3+ {[%emt 0:00:56]} 34. Kh2 {[%emt 0:00:04]} Bf5 {[%emt 0:03:06]} 35. Ba1 {[%emt 0:07:09]} Qe6 {[%emt 0:01:35]} 36. Qd4 {[%emt 0:12:18]} f6 {[%emt 0:03:02]} 37. Qxd5 {[%emt 0:00:39]} Qxd5 {[%emt 0:00:26]} 38. Rxd5 {[%emt 0:00:04]} Be6 {[%emt 0:00:40]} 39. Ra5 {[%emt 0:00:58]} R8b6 {[%emt 0:00:34]} 40. Rd4 {[%emt 0:02:25]} R3b5 {[%emt 0:01:09]} 41. Ra3 {[%emt 0:30:46]} Rh5+ {[%emt 0:30:42]} 42. Kg2 {[%emt 0:00:08]} Bh3+ {[%emt 0:01:05]} 43. Kf3 {[%emt 0:00:05]} Rf5+ {[%emt 0:00:18]} 44. Rf4 {[%emt 0:00:08]} Rxf4+ {[%emt 0:00:44]} 45. Kxf4 {[%emt 0:00:43]} Bd7 {[%emt 0:00:55]} 46. e4 {[%emt 0:00:18]} Kf7 {[%emt 0:00:35]} 47. Ke3 {[%emt 0:00:13]} h5 {[%emt 0:00:00]} 48. Bd4 {[%emt 0:00:00]} Re6 {[%emt 0:00:00]} 49. f4 {[%emt 0:00:00]} Bb5 {[%emt 0:00:00]} 50. Rc3 {[%emt 0:00:00]} Rc6 {[%emt 0:00:00]} 51. f5 {[%emt 0:00:00]} Rxc3+ {[%emt 0:00:00]} 1/2-1/2

[Event "Asian Nation Cup Open 2018"]
[Site "Hamedan"]
[Date "2018.08.03"]
[Round "7"]
[White "Wen, Yang"]
[Black "Ismagambetov, Anuar"]
[Result "1/2-1/2"]
[ECO "B33"]
[WhiteElo "2599"]
[BlackElo "2529"]
[Annotator "ChessBase"]
[PlyCount "32"]
[EventDate "2018.07.27"]
[EventType "swiss"]
[EventCountry "IRI"]
[SourceTitle "playchess.com"]
[Source "ChessBase"]
[SourceQuality "1"]
[WhiteTeam "China"]
[BlackTeam "Kazakhstan"]
[WhiteTeamCountry "CHN"]
[BlackTeamCountry "KAZ"]
[TimeControl "40/5400+30:1800+30"]

1. e4 c5 {[%emt 0:00:02]} 2. Nf3 {[%emt 0:00:00]} Nc6 {[%emt 0:00:06]} 3. d4 {[%emt 0:00:00]} cxd4 {[%emt 0:00:23]} 4. Nxd4 {[%emt 0:00:00]} Nf6 {[%emt 0:00:37]} 5. Nc3 {[%emt 0:00:00]} e5 {[%emt 0:00:07]} 6. Ndb5 {[%emt 0:00:04]} d6 {[%emt 0:00:07]} 7. Bg5 {[%emt 0:00:05]} a6 {[%emt 0:00:45]} 8. Na3 {[%emt 0:00:06]} b5 {[%emt 0:00:09]} 9. Nd5 {[%emt 0:00:06]} Be7 {[%emt 0:00:46]} 10. Bxf6 {[%emt 0:00:08]} Bxf6 {[%emt 0:00:02]} 11. c4 {[%emt 0:00:09]} Nd4 {[%emt 0:01:34]} 12. Bd3 {[%emt 0:08:35]} Bb7 {[%emt 0:05:38]} 13. O-O {[%emt 0:04:47]} Bxd5 {[%emt 0:01:29]} 14. cxd5 {[%emt 0:00:07]} O-O {[%emt 0:00:45]} 15. Nc2 {[%emt 0:00:07]} Nxc2 {[%emt 0:01:28]} 16. Qxc2 {[%emt 0:01:06]} Qb6 {[%emt 0:04:13]} 1/2-1/2